bitfinex/quotes_SOLUSD_20220128
["timestamp","ask_amount","ask_price","bid_price","bid_amount"]
[1643397937860,16.548,90.75,90.654,0.25]
[1643397938267,16.548,90.75,90.655,2.95669142]
[1643397938665,20.18342996,90.749,90.656,0.25]
[1643397939171,16.549,90.74,90.651,45.873]
[1643397939365,48.46164324,90.739,90.652,0.25]
[1643397939565,48.46164324,90.739,90.651,45.873]
[1643397939764,48.46164324,90.739,90.63,13.04]
[1643397939965,20.1576988,90.738,90.63,13.04]
[1643397940367,0.25,90.737,90.63,13.04]
[1643397940565,0.25,90.737,90.633,24.2002]
[1643397940766,20.1576988,90.736,90.633,24.2002]
[1643397940968,16.552,90.73,90.633,24.2002]
[1643397941165,16.552,90.73,90.634,0.25]
[1643397941367,0.25,90.729,90.634,0.25]
[1643397941568,0.25,90.729,90.633,24.2002]
[1643397942369,0.25,90.738,90.633,24.2002]
[1643397942669,45.95835863,90.725,90.634,111.50669142]
[1643397942968,1.48044921,90.758,90.643,6.0]
[1643397943169,1.48044921,90.758,90.65,13.04]
[1643397943376,1.48044921,90.775,90.651,0.25]
[1643397943574,1.48044921,90.778,90.661,108.3]
[1643397943775,16.544,90.77,90.67,13.04]
[1643397943975,46.9337324,90.769,90.671,6.0]
[1643397944175,47.1837324,90.769,90.68,6.0]
[1643397944378,6.0,90.759,90.681,0.25]
[1643397944575,6.0,90.758,90.682,6.0]
[1643397944777,6.25,90.758,90.683,0.25]
[1643397945374,0.25,90.758,90.683,0.25]
[1643397946377,0.25,90.758,90.691,6.0]
[1643397946777,0.25,90.758,90.692,0.25]
[1643397947379,0.25,90.768,90.692,0.25]
[1643397947780,0.25,90.768,90.693,2.95669142]
[1643397948179,0.25,90.768,90.694,0.25]
[1643397948579,0.25,90.768,90.695,2.95669142]
[1643397948798,1.48044921,90.792,90.696,0.25]
[1643397948997,1.48044921,90.799,90.705,6.0]
[1643397949198,27.1664718,90.809,90.705,6.0]
[1643397949397,47.8552,90.81,90.706,9.20669142]
[1643397949605,47.8552,90.81,90.716,6.0]
[1643397949900,47.8552,90.81,90.711,108.3]
[1643397949901,67.68545607,90.809,90.717,48.341]
[1643397950502,20.1969648,90.808,90.717,48.341]
[1643397951300,0.25,90.807,90.717,48.341]
[1643397951708,20.1969648,90.806,90.717,48.341]
[1643397952106,0.25,90.805,90.717,48.341]
[1643397952501,6.0,90.799,90.717,48.341]
[1643397952901,0.25,90.798,90.717,48.341]
[1643397953102,6.0,90.799,90.717,48.341]
[1643397954505,0.25,90.798,90.717,48.341]
[1643397954707,6.0,90.799,90.717,48.341]
[1643397955004,0.25,90.798,90.727,6.0]
[1643397955405,0.25,90.798,90.728,0.25]
[1643397955605,6.0,90.799,90.728,0.25]
[1643397958212,0.25,90.798,90.727,6.0]
[1643397958413,0.25,90.798,90.718,0.25]
[1643397960015,46.96160219,90.789,90.717,48.091]
[1643397960216,46.96160219,90.789,90.66,55.133]
[1643397960417,6.0,90.779,90.674,24.9171]
[1643397960615,6.0,90.778,90.674,24.9171]
[1643397960815,6.25,90.778,90.674,24.9171]
[1643397961217,2.95669142,90.777,90.662,17.08137205]
[1643397961416,2.95669142,90.777,90.64,13.04]
[1643397961616,41.48858994,90.766,90.63,13.04]
[1643397961916,8.20669142,90.765,90.615,1.52612877]
[1643397962115,6.0,90.755,90.61,14.56612877]
[1643397962419,46.28426806,90.719,90.61,13.04]
[1643397962617,6.0,90.709,90.61,13.04]
[1643397962818,0.25,90.708,90.61,13.04]
[1643397963018,0.25,90.708,90.62,6.0]
[1643397963217,0.25,90.708,90.621,6.0]
[1643397963418,46.28426806,90.719,90.621,8.95669142]
[1643397963619,0.25,90.718,90.621,8.95669142]
[1643397963816,0.25,90.718,90.622,3.20669142]
[1643397964019,0.25,90.718,90.632,6.0]
[1643397964224,0.25,90.718,90.64,13.04]
[1643397964619,0.25,90.718,90.641,0.25]
[1643397964821,0.25,90.718,90.641,3.20669142]
[1643397965029,0.25,90.718,90.642,2.95669142]
[1643397965422,0.25,90.718,90.643,0.25]
[1643397965624,0.25,90.718,90.65,16.546]
[1643397965823,0.25,90.718,90.651,0.25]
[1643397966223,0.25,90.718,90.651,3.20669142]
[1643397966523,46.28426806,90.719,90.652,2.95669142]
[1643397966922,16.547,90.75,90.653,0.25]
[1643397967123,1.48044921,90.771,90.662,6.0]
[1643397967323,0.25,90.77,90.67,13.04]
[1643397967624,55.145,90.79,90.67,13.04]
[1643397967625,6.0,90.761,90.674,108.3]
[1643397967825,6.0,90.761,90.68,6.0]
[1643397968022,39.33693423,90.76,90.685,6.0]
[1643397968224,39.33693423,90.76,90.686,108.3]
[1643397968431,39.33693423,90.76,90.686,111.50669142]
[1643397968635,39.33693423,90.76,90.696,6.0]
[1643397968931,39.33693423,90.76,90.697,0.25]
[1643397969130,39.33693423,90.76,90.697,6.25]
[1643397969529,1.48044921,90.798,90.698,111.25669142]
[1643397969729,1.48044921,90.802,90.7,13.04]
[1643397969931,0.25,90.797,90.708,6.0]
[1643397970137,6.0,90.791,90.71,6.0]
[1643397970331,0.25,90.79,90.711,0.25]
[1643397970531,44.08753793,90.79,90.711,6.25]
[1643397970933,44.08753793,90.79,90.711,114.55]
[1643397973335,44.08753793,90.79,90.711,0.25]
[1643397973737,43.83753793,90.79,90.712,2.95669142]
[1643397973938,0.25,90.789,90.712,2.95669142]
[1643397974139,0.25,90.789,90.713,0.25]
[1643397974338,43.83753793,90.79,90.713,0.25]
[1643397974538,43.83753793,90.79,90.714,2.95669142]
[1643397975075,43.83753793,90.79,90.715,0.25]
[1643397975569,43.83753793,90.79,90.716,2.95669142]
[1643397975772,6.0,90.78,90.67,13.04]
[1643397976169,1.48044921,90.777,90.661,16.477]
[1643397976369,1.48044921,90.774,90.661,16.477]
[1643397976571,6.0,90.764,90.661,16.477]
[1643397976771,16.546,90.76,90.662,24.1787]
[1643397976971,35.38163853,90.759,90.662,24.1787]
[1643397977171,35.63163853,90.759,90.672,6.0]
[1643397977371,35.63163853,90.759,90.682,6.0]
[1643397977570,35.63163853,90.759,90.673,6.25]
[1643397977971,35.38163853,90.759,90.674,108.3]
[1643397978372,0.25,90.758,90.675,0.25]
[1643397978772,0.25,90.758,90.675,47.8919]
[1643397979373,35.38163853,90.759,90.675,47.8919]
[1643397979573,0.25,90.758,90.675,47.8919]
[1643397979774,35.38163853,90.759,90.675,47.8919]
[1643397981074,35.38163853,90.759,90.68,16.541]
[1643397981275,35.38163853,90.759,90.681,108.55]
[1643397981876,0.25,90.758,90.681,108.55]
[1643397983078,0.25,90.758,90.681,108.3]
[1643397983578,35.38163853,90.759,90.681,108.3]
[1643397984578,35.38163853,90.759,90.682,0.25]
[1643397985383,35.38163853,90.759,90.692,108.3]
[1643397985582,35.38163853,90.759,90.702,6.0]
[1643397985782,35.38163853,90.759,90.703,0.25]
[1643397987080,35.38163853,90.759,90.693,0.25]
[1643397988682,1.48044921,90.785,90.7,16.537]
[1643397988881,1.48044921,90.786,90.703,108.3]
[1643397989083,1.48044921,90.795,90.713,6.0]
[1643397989385,1.48044921,90.797,90.714,48.2887]
[1643397989582,1.48044921,90.797,90.724,6.0]
[1643397989783,37.4210452,90.796,90.725,0.25]
[1643397989984,37.4210452,90.796,90.725,23.9203]
[1643397990184,37.4210452,90.796,90.726,108.3]
[1643397990388,37.4210452,90.796,90.735,6.0]
[1643397990687,37.4210452,90.796,90.736,6.0]
[1643397990883,37.4210452,90.796,90.737,0.25]
[1643397991685,37.4210452,90.796,90.725,23.6703]
[1643397991887,1.48044921,90.793,90.726,0.25]
[1643397992387,37.4210452,90.796,90.726,0.25]
[1643397992586,37.4210452,90.796,90.736,108.3]
[1643397992790,37.4210452,90.796,90.737,0.25]
[1643397993987,37.4210452,90.796,90.735,6.0]
[1643397994187,37.4210452,90.796,90.736,0.25]
[1643397994689,37.4210452,90.796,90.736,6.25]
[1643397995695,37.4210452,90.796,90.735,6.0]
[1643397995891,37.4210452,90.796,90.678,10.49970036]
[1643397995892,0.25,90.795,90.697,1.52612877]
[1643397996090,0.25,90.795,90.7,13.04]
[1643397996291,0.25,90.795,90.693,6.0]
[1643397996492,6.0,90.786,90.684,46.3719]
[1643397996894,39.64589259,90.759,90.672,1.52612877]
[1643397997094,39.64589259,90.759,90.664,1.52612877]
[1643397997290,0.25,90.758,90.672,6.0]
[1643397997692,0.25,90.758,90.661,108.3]
[1643397998094,0.25,90.758,90.672,6.0]
[1643397998694,0.25,90.758,90.661,108.3]
[1643397998993,0.25,90.758,90.672,6.0]
[1643397999395,0.25,90.758,90.673,0.25]
[1643397999792,0.25,90.758,90.673,25.0025]
[1643397999994,0.25,90.758,90.673,31.0025]
[1643398000394,0.25,90.758,90.673,0.25]
[1643398000594,6.0,90.749,90.666,6.0]
[1643398000798,0.25,90.748,90.657,0.25]
[1643398001097,43.81531421,90.744,90.657,0.25]
[1643398001394,0.25,90.743,90.641,0.25]
[1643398001593,6.0,90.734,90.65,22.546]
[1643398001794,6.0,90.734,90.651,0.25]
[1643398002098,6.0,90.733,90.651,0.25]
[1643398002798,6.0,90.734,90.651,0.25]
[1643398003999,43.81531421,90.744,90.66,6.0]
[1643398004198,43.81531421,90.744,90.66,29.584]
[1643398004398,43.81531421,90.744,90.661,48.5815]
[1643398004597,43.81531421,90.744,90.671,6.0]
[1643398004799,43.81531421,90.744,90.672,0.25]
[1643398005001,1.48044921,90.761,90.68,6.0]
[1643398005199,1.48044921,90.77,90.69,13.04]
[1643398005399,1.48044921,90.794,90.691,0.25]
[1643398005598,27.26045,90.797,90.701,108.3]
[1643398005801,20.34716787,90.793,90.702,0.25]
[1643398006002,43.93080042,90.792,90.711,6.0]
[1643398006399,43.93080042,90.792,90.712,6.25]
[1643398006598,20.34716787,90.791,90.712,6.25]
[1643398006801,20.34716787,90.791,90.712,9.20669142]
[1643398007098,43.93080042,90.792,90.712,9.20669142]
[1643398007099,43.93080042,90.792,90.72,6.0]
[1643398007301,1.48044921,90.813,90.721,108.55]
[1643398007502,1.48044921,90.813,90.731,6.0]
[1643398007706,1.48044921,90.825,90.74,29.567]
[1643398007905,1.48044921,90.834,90.741,108.55]
[1643398008105,1.48044921,90.844,90.751,114.3]
[1643398008306,41.95769996,90.846,90.76,13.04]
[1643398008510,41.95769996,90.846,90.77,6.0]
[1643398008939,41.95769996,90.846,90.771,0.25]
[1643398009346,41.95769996,90.846,90.771,108.55]
[1643398009546,0.25,90.845,90.771,108.55]
[1643398009747,41.95769996,90.846,90.771,108.55]
[1643398010144,0.25,90.845,90.771,0.25]
[1643398010342,0.25,90.845,90.724,1.52612877]
[1643398010544,20.34948235,90.844,90.744,6.0]
[1643398010743,0.25,90.843,90.744,6.0]
[1643398010944,6.0,90.834,90.75,6.0]
[1643398011245,43.18421927,90.831,90.75,6.0]
[1643398011441,16.535,90.82,90.75,6.0]
[1643398011651,16.535,90.82,90.74,6.0]
[1643398011845,0.25,90.819,90.73,13.04]
[1643398012048,0.25,90.819,90.74,6.0]
[1643398012243,0.25,90.819,90.73,13.04]
[1643398012845,0.25,90.83,90.73,29.571]
[1643398013049,43.18421927,90.831,90.74,6.0]
[1643398013245,43.18421927,90.831,90.75,13.04]
[1643398013652,43.18421927,90.831,90.76,6.0]
[1643398013849,43.18421927,90.831,90.761,0.25]
[1643398014048,43.18421927,90.831,90.761,5.75]
[1643398014749,1.48044921,90.87,90.762,2.95669142]
[1643398014949,27.3386193,90.881,90.762,111.25669142]
[1643398014950,1.48044921,90.877,90.762,111.25669142]
[1643398015149,20.34110284,90.869,90.762,111.25669142]
[1643398015350,20.34110284,90.869,90.772,6.0]
[1643398015548,2.95669142,90.907,90.78,13.04]
[1643398015549,45.19744977,90.882,90.78,13.04]
[1643398015949,45.19744977,90.882,90.791,108.3]
[1643398016150,45.19744977,90.882,90.8,13.04]
[1643398016356,45.19744977,90.882,90.802,108.3]
[1643398016552,45.19744977,90.882,90.812,6.0]
[1643398016952,45.19744977,90.882,90.82,16.515]
[1643398017153,6.0,90.872,90.82,16.515]
[1643398017349,6.0,90.872,90.821,0.25]
[1643398017750,2.95669142,90.907,90.821,0.25]
[1643398017955,1.48044921,90.921,90.83,35.552]
[1643398018153,1.48044921,90.938,90.84,6.0]
[1643398018352,78.82404762,90.989,90.84,6.0]
[1643398018353,1.48044921,90.956,90.85,13.04]
[1643398018553,27.37801388,90.973,90.85,13.04]
[1643398018554,1.48044921,90.964,90.86,6.0]
[1643398018770,37.83672663,90.963,90.87,13.04]
[1643398019156,37.83672663,90.963,90.871,0.25]
[1643398019554,6.0,90.953,90.871,0.25]
[1643398020154,38.59652373,90.949,90.871,0.25]
[1643398020355,38.59652373,90.949,90.87,13.04]
[1643398020655,27.37801388,90.994,90.88,13.04]
[1643398020854,27.37801388,90.994,90.872,2.95669142]
[1643398020855,1.48044921,91.011,90.89,13.04]
[1643398021054,1.48044921,91.018,90.9,6.0]
[1643398021256,20.39106471,91.01,90.91,13.04]
[1643398021654,48.44115758,91.009,90.911,0.25]
[1643398022054,48.44115758,91.009,90.91,13.04]
[1643398022055,6.0,90.999,90.91,13.04]
[1643398022254,16.502,90.99,90.911,0.25]
[1643398022455,44.37243691,90.989,90.911,0.25]
[1643398022654,44.62243691,90.989,90.911,0.25]
[1643398022854,20.39106471,90.988,90.911,0.25]
[1643398023256,0.25,90.987,90.911,0.25]
[1643398023658,20.39106471,90.986,90.911,0.25]
[1643398023861,0.25,90.985,90.911,0.25]
[1643398024258,0.25,90.985,90.91,29.538]
[1643398024259,0.25,90.985,90.91,13.04]
[1643398024457,6.0,90.979,90.89,13.04]
[1643398024659,6.0,90.979,90.87,13.04]
[1643398024858,6.0,90.979,90.844,16.4219]
[1643398024859,41.80932127,90.973,90.85,13.04]
[1643398025057,6.0,90.963,90.85,13.04]
[1643398025258,0.25,90.962,90.85,13.04]
[1643398025658,5.75,90.962,90.86,6.0]
[1643398025857,6.0,90.962,90.861,0.25]
[1643398026157,37.4762098,90.959,90.861,0.25]
[1643398026358,37.4762098,90.959,90.87,13.04]
[1643398026757,37.4762098,90.959,90.871,0.25]
[1643398027358,6.0,90.949,90.871,0.25]
[1643398027789,0.25,90.948,90.871,0.25]
[1643398027990,16.511,90.94,90.871,0.25]
[1643398028190,36.98261612,90.939,90.871,0.25]
[1643398028991,36.98261612,90.939,90.88,6.0]
[1643398029195,27.15740283,91.009,90.89,13.04]
[1643398029393,55.005,91.01,90.9,29.539]
[1643398029591,55.005,91.01,90.91,13.04]
[1643398029790,20.25602595,91.009,90.911,0.25]
[1643398030190,20.25602595,91.009,90.91,13.04]
[1643398030191,16.502,91.0,90.91,13.04]
[1643398030394,6.0,90.999,90.89,13.04]
[1643398030593,44.31029892,90.989,90.84,16.51]
[1643398030794,0.25,90.988,90.85,13.04]
[1643398030992,6.0,90.979,90.856,6.0]
[1643398031192,6.0,90.979,90.85,19.04]
[1643398031193,43.33688163,90.969,90.861,108.3]
[1643398031394,0.25,90.968,90.861,108.3]
[1643398031592,0.25,90.968,90.871,6.0]
[1643398032793,6.0,90.959,90.871,6.0]
[1643398033193,0.25,90.958,90.871,6.0]
[1643398033395,0.25,90.958,90.872,0.25]
[1643398033793,6.0,90.95,90.87,13.04]
[1643398033995,47.65607874,90.949,90.852,2.95669142]
[1643398034297,41.70435997,90.919,90.83,37.5806]
[1643398034494,41.70435997,90.919,90.851,0.25]
[1643398035695,41.70435997,90.919,90.841,108.55]
[1643398035897,41.70435997,90.919,90.85,6.0]
[1643398036095,41.70435997,90.919,90.842,2.95669142]
[1643398036295,41.70435997,90.919,90.843,0.25]
[1643398036499,41.70435997,90.919,90.852,6.0]
[1643398036696,41.70435997,90.919,90.843,0.25]
[1643398036899,41.70435997,90.919,90.853,0.25]
[1643398037097,41.70435997,90.919,90.85,16.509]
[1643398037299,41.70435997,90.919,90.852,6.0]
[1643398037498,0.25,90.918,90.852,6.0]
[1643398037701,0.25,90.918,90.853,0.25]
[1643398037902,0.25,90.918,90.851,0.25]
[1643398038101,0.25,90.918,90.83,24.5406]
[1643398038299,6.0,90.909,90.83,37.5806]
[1643398038501,6.0,90.909,90.83,13.04]
[1643398038700,6.0,90.909,90.8,13.04]
[1643398038701,0.25,90.908,90.8,13.04]
[1643398039302,16.519,90.9,90.8,13.04]
[1643398039505,6.0,90.89,90.801,2.95669142]
[1643398039703,6.0,90.89,90.801,111.25669142]
[1643398039902,6.25,90.889,90.802,0.25]
[1643398040103,6.0,90.889,90.802,3.20669142]
[1643398040302,36.78632415,90.899,90.812,6.0]
[1643398040503,36.78632415,90.899,90.82,13.04]
[1643398040705,0.25,90.898,90.813,0.25]
[1643398040903,6.0,90.889,90.813,3.20669142]
[1643398041105,6.0,90.889,90.813,0.25]
[1643398041303,0.25,90.888,90.813,0.25]
[1643398041705,6.0,90.889,90.813,0.25]
[1643398042007,0.25,90.888,90.81,6.0]
[1643398042303,0.25,90.888,90.811,0.25]
[1643398042504,0.25,90.888,90.801,3.20669142]
[1643398042905,6.0,90.889,90.802,2.95669142]
[1643398043110,6.0,90.889,90.812,6.0]
[1643398043308,6.0,90.889,90.813,0.25]
[1643398043507,36.78632415,90.899,90.813,0.25]
[1643398043705,36.78632415,90.899,90.814,2.95669142]
[1643398043913,6.0,90.889,90.815,0.25]
[1643398044107,36.78632415,90.899,90.815,0.25]
[1643398044307,0.25,90.898,90.816,2.95669142]
[1643398044808,0.25,90.898,90.79,16.519]
[1643398044809,0.25,90.898,90.817,0.25]
[1643398045306,6.0,90.889,90.817,0.25]
[1643398046006,45.08432828,90.879,90.801,0.25]
[1643398051915,45.08432828,90.879,90.8,29.308]
[1643398052116,0.25,90.878,90.8,12.79]
[1643398052320,6.0,90.869,90.8,12.79]
[1643398052814,0.25,90.868,90.8,12.79]
[1643398053214,0.25,90.868,90.801,0.25]
[1643398055639,6.0,90.86,90.801,0.25]
[1643398056539,6.0,90.86,90.8,12.79]
[1643398056738,6.0,90.86,90.788,2.95669142]
[1643398056739,0.25,90.859,90.788,2.95669142]
[1643398057839,0.25,90.859,90.795,0.25]
[1643398058441,6.0,90.86,90.795,0.25]
[1643398058743,45.08432828,90.879,90.804,6.0]
[1643398059143,0.25,90.878,90.805,3.20669142]
[1643398059345,0.25,90.878,90.805,0.25]
[1643398060343,0.25,90.878,90.795,0.25]
[1643398062962,16.524,90.87,90.795,0.25]
[1643398063159,0.25,90.878,90.795,0.25]
[1643398063964,0.25,90.878,90.787,2.95669142]
[1643398064160,6.0,90.869,90.781,24.9263]
[1643398064362,0.25,90.868,90.781,24.9263]
[1643398065262,0.25,90.868,90.794,0.25]
[1643398065863,6.25,90.868,90.794,0.25]
[1643398066066,6.0,90.86,90.794,0.25]
[1643398066265,0.25,90.859,90.794,0.25]
[1643398066466,6.0,90.858,90.794,0.25]
[1643398066664,0.25,90.859,90.794,0.25]
[1643398066866,45.08432828,90.879,90.795,2.95669142]
[1643398067077,45.08432828,90.879,90.805,6.0]
[1643398067269,1.48044921,90.901,90.81,13.04]
[1643398067468,1.48044921,90.906,90.811,108.3]
[1643398067669,1.48044921,90.908,90.82,6.0]
[1643398067867,2.96089841,90.933,90.821,28.9696]
[1643398067868,1.48044921,90.911,90.821,28.9696]
[1643398068066,1.48044921,90.916,90.83,6.0]
[1643398068266,16.514,90.93,90.841,108.3]
[1643398068267,42.56112246,90.915,90.841,108.3]
[1643398068668,42.56112246,90.915,90.851,6.0]
[1643398068877,42.56112246,90.915,90.852,0.25]
[1643398069568,42.56112246,90.915,90.852,6.25]
[1643398069968,1.48044921,90.931,90.852,6.25]
[1643398070173,1.48044921,90.944,90.853,48.69409142]
[1643398070369,1.48044921,90.944,90.862,6.0]
[1643398070571,1.48044921,90.952,90.87,13.04]
[1643398070768,1.48044921,90.952,90.871,22.8123]
[1643398070969,1.48044921,90.968,90.881,108.3]
[1643398071170,1.48044921,90.974,90.9,16.5]
[1643398071473,39.69109306,90.975,90.901,0.25]
[1643398072171,16.509,90.95,90.901,0.25]
[1643398072604,36.54218551,90.939,90.882,0.25]
[1643398072812,36.54218551,90.939,90.85,13.04]
[1643398072813,0.25,90.938,90.855,0.25]
[1643398073508,0.25,90.938,90.86,13.04]
[1643398073906,0.25,90.938,90.861,0.25]
[1643398075217,36.54218551,90.939,90.861,0.25]
[1643398075410,0.25,90.938,90.861,0.25]
[1643398075607,6.0,90.929,90.861,0.25]
[1643398075807,0.25,90.928,90.861,0.25]
[1643398076007,0.25,90.928,90.86,13.04]
[1643398076708,6.0,90.92,90.81,13.04]
[1643398076909,0.25,90.919,90.79,13.04]
[1643398077112,6.0,90.917,90.79,13.04]
[1643398077311,1.48044921,90.914,90.79,13.04]
[1643398077508,44.54146759,90.889,90.79,29.561]
[1643398077717,44.54146759,90.889,90.791,23.751]
[1643398077913,6.0,90.879,90.791,24.001]
[1643398078112,6.0,90.879,90.801,6.0]
[1643398078310,0.25,90.878,90.802,0.25]
[1643398079111,6.0,90.87,90.802,0.25]
[1643398079311,0.25,90.869,90.802,0.25]
[1643398079512,0.25,90.869,90.792,0.25]
[1643398080913,0.25,90.878,90.792,0.25]
[1643398081714,16.523,90.87,90.791,23.751]
[1643398081916,16.523,90.87,90.77,2.95669142]
[1643398082115,6.0,90.86,90.75,1.52612877]
[1643398082315,47.52247217,90.859,90.738,16.1147]
[1643398082518,56.47916359,90.859,90.738,16.1147]
[1643398082715,2.95669142,90.858,90.738,16.1147]
[1643398083017,6.0,90.848,90.738,16.1147]
[1643398083417,0.25,90.847,90.739,0.25]
[1643398084115,48.5785112,90.819,90.739,0.25]
[1643398084320,0.25,90.818,90.739,0.25]
[1643398084518,6.0,90.809,90.739,0.25]
[1643398085119,6.0,90.848,90.739,0.25]
[1643398085318,0.25,90.847,90.739,22.9571]
[1643398085522,16.529,90.84,90.74,16.529]
[1643398085725,16.529,90.84,90.749,6.0]
[1643398086022,6.0,90.83,90.75,6.0]
[1643398086321,0.25,90.829,90.751,0.25]
[1643398086520,6.25,90.829,90.751,0.25]
[1643398087521,6.25,90.829,90.741,0.25]
[1643398088620,6.25,90.829,90.74,0.25]
[1643398089023,6.0,90.82,90.74,0.25]
[1643398089223,6.0,90.82,90.74,108.55]
[1643398089424,6.25,90.819,90.74,108.55]
[1643398089625,0.25,90.819,90.74,108.55]
[1643398090027,0.25,90.819,90.75,6.0]
[1643398090527,0.25,90.819,90.751,0.25]
[1643398090929,0.25,90.828,90.751,0.25]
[1643398091348,0.25,90.828,90.751,108.55]
[1643398091625,6.0,90.829,90.751,108.55]
[1643398092828,0.25,90.828,90.751,108.55]
[1643398093330,6.0,90.829,90.751,0.25]
[1643398093531,0.25,90.828,90.751,0.25]
[1643398093731,0.25,90.828,90.741,108.55]
[1643398095032,6.0,90.82,90.741,108.55]
[1643398095432,0.25,90.819,90.741,108.55]
[1643398101474,0.25,90.819,90.721,1.51646906]
[1643398101674,3.20669142,90.819,90.71,1.51646906]
[1643398101864,3.20669142,90.819,90.704,23.661]
[1643398102064,6.0,90.809,90.704,23.661]
[1643398102265,37.81529118,90.808,90.704,23.661]
[1643398102664,6.0,90.798,90.704,23.661]
[1643398102863,0.25,90.797,90.704,23.661]
[1643398103064,16.54,90.78,90.705,0.25]
[1643398103272,42.7938404,90.779,90.705,0.25]
[1643398103465,6.0,90.798,90.715,108.3]
[1643398103666,6.0,90.798,90.716,1.51646906]
[1643398103872,6.0,90.798,90.73,13.04]
[1643398104065,6.0,90.828,90.741,108.3]
[1643398104271,6.0,90.828,90.742,47.9855]
[1643398104567,48.43954077,90.827,90.742,47.9855]
[1643398104766,48.43954077,90.827,90.743,2.95669142]
[1643398104967,6.0,90.817,90.743,2.95669142]
[1643398105168,6.0,90.817,90.744,0.25]
[1643398105372,0.25,90.816,90.744,0.25]
[1643398105567,0.25,90.816,90.745,2.95669142]
[1643398105767,0.25,90.816,90.746,0.25]
[1643398106168,0.25,90.816,90.747,2.95669142]
[1643398106370,0.25,90.816,90.748,0.25]
[1643398106769,6.0,90.817,90.749,2.95669142]
[1643398106968,48.43954077,90.827,90.759,6.0]
[1643398107367,48.43954077,90.827,90.76,6.25]
[1643398107567,48.43954077,90.827,90.764,6.0]
[1643398107768,48.43954077,90.827,90.765,0.25]
[1643398107968,1.48839123,90.865,90.771,114.3]
[1643398108169,1.48839123,90.865,90.773,108.3]
[1643398108369,1.48839123,90.869,90.774,0.25]
[1643398108670,1.48839123,90.885,90.783,6.0]
[1643398108873,12.99166777,90.908,90.802,1.51646906]
[1643398109070,1.48839123,90.908,90.812,6.0]
[1643398109271,1.48839123,90.923,90.84,16.51]
[1643398109471,27.61727152,90.958,90.85,13.04]
[1643398109472,1.48839123,90.934,90.85,13.04]
[1643398109771,1.48839123,90.941,90.851,0.25]
[1643398109969,27.61727152,90.992,90.851,0.25]
[1643398109970,1.48839123,90.959,90.851,59.18527611]
[1643398110170,27.61727152,90.992,90.852,24.3779181]
[1643398110171,1.48839123,90.969,90.852,24.3779181]
[1643398110372,3.00268471,90.991,90.86,22.508]
[1643398110373,40.80576026,90.968,90.86,22.508]
[1643398110572,40.80576026,90.968,90.87,19.04]
[1643398110772,40.80576026,90.968,90.88,13.04]
[1643398111171,1.48839123,90.98,90.89,6.0]